fUST/lending_fUST_20250130
["ID","MTS","AMOUNT","RATE_DAILY","PERIOD"]
[350952209,1738237451560,184.735084,0.00013699,2]
[350952210,1738237458975,10000.0,0.000192,90]
[350952211,1738237474122,10000.0,0.00020453,120]
[350952212,1738237482973,10000.0,0.000192,90]
[350952213,1738237492965,10000.0,0.00020453,120]
[350952214,1738237509115,8000.0,0.000192,90]
[350952215,1738237551125,-208.08140402,0.00016533,2]
[350952216,1738237551147,-274.66,0.000167,2]
[350952217,1738237551168,-300.0,0.000167,6]
[350952218,1738237551188,-235.540225,0.00017065,2]
[350952219,1738237551210,-163.86759173,0.00017918,2]
[350952220,1738237551230,-300.0,0.00017961,2]
[350952221,1738237551253,-402.33793813,0.00017962,2]
[350952222,1738237551275,-500.0,0.00017962,2]
[350952223,1738237551297,-500.0,0.00017962,2]
[350952224,1738237551319,-500.0,0.00017962,2]
[350952225,1738237551341,-500.0,0.00017962,2]
[350952226,1738237551365,-500.0,0.00017962,2]
[350952227,1738237551387,-500.0,0.00017962,2]
[350952228,1738237551409,-500.0,0.00017962,2]
[350952229,1738237551430,-500.0,0.00017962,2]
[350952230,1738237551452,-500.0,0.00017962,2]
[350952231,1738237551476,-500.0,0.00017962,2]
[350952232,1738237551497,-500.0,0.00017962,2]
[350952233,1738237551519,-500.0,0.00017962,2]
[350952234,1738237551544,-473.63112527,0.00017962,2]
[350952235,1738237551565,-500.0,0.00017962,2]
[350952236,1738237551589,-500.0,0.00017962,2]
[350952237,1738237551610,-500.0,0.00017962,2]
[350952238,1738237551630,-500.0,0.00017962,2]
[350952239,1738237551652,-500.0,0.00017962,2]
[350952240,1738237551674,-500.0,0.00017962,2]
[350952241,1738237551695,-500.0,0.00017962,2]
[350952242,1738237551716,-500.0,0.00017962,2]
[350952243,1738237551740,-500.0,0.00017962,2]
[350952244,1738237551762,-500.0,0.00017962,2]
[350952245,1738237551784,-24900.0,0.00017963,2]
[350952246,1738237551805,-500.0,0.00018018,2]
[350952247,1738237551826,-500.0,0.00018018,2]
[350952248,1738237551847,-500.0,0.00018018,2]
[350952249,1738237551868,-500.0,0.00018018,2]
[350952250,1738237551889,-500.0,0.00018018,2]
[350952251,1738237551910,-500.0,0.00018018,2]
[350952252,1738237551947,-239.57,0.00018099,2]
[350952253,1738237551973,-226.18,0.00018099,2]
[350952254,1738237552016,-500.0,0.00018099,2]
[350952255,1738237552045,-500.0,0.00018099,2]
[350952256,1738237552074,-500.0,0.00018099,2]
[350952257,1738237552100,-189.88848789,0.00018099,2]
[350952258,1738237552126,-549.15,0.00018099,2]
[350952259,1738237552154,-500.0,0.00018099,2]
[350952260,1738237552181,-500.0,0.00018099,2]
[350952261,1738237552210,-500.0,0.00018099,2]
[350952262,1738237552239,-500.0,0.00018099,2]
[350952263,1738237552267,-500.0,0.00018099,2]
[350952264,1738237552292,-599.57198947,0.00018154,2]
[350952265,1738237552318,-500.0,0.00018154,2]
[350952266,1738237552343,-500.0,0.00018154,2]
[350952267,1738237552367,-500.0,0.00018154,2]
[350952268,1738237552390,-500.0,0.00018154,2]
[350952269,1738237552416,-500.0,0.00018154,2]
[350952270,1738237552442,-500.0,0.00018154,2]
[350952271,1738237552468,-294.147,0.00018207,2]
[350952272,1738237552494,-500.0,0.00018236,2]
[350952273,1738237552518,-500.0,0.00018236,2]
[350952274,1738237552541,-500.0,0.00018236,2]
[350952275,1738237552565,-500.0,0.00018236,2]
[350952276,1738237552590,-500.0,0.00018373,2]
[350952277,1738237552616,-398.26,0.00018373,2]
[350952278,1738237552642,-238.7,0.00018373,2]
[350952279,1738237552668,-104.73305014,0.00018462,2]
[350952280,1738237552733,-500.0,0.00017962,2]
[350952281,1738237552762,-500.0,0.00018099,2]
[350952282,1738237552787,-395.0,0.00018102,2]
[350952283,1738237552808,-395.26694986,0.00018462,2]
[350952284,1738237552832,-500.0,0.0001851,2]
[350952285,1738237552854,-163.86759169,0.00018516,2]
[350952286,1738237552879,-500.0,0.00018575,2]
[350952287,1738237552904,-500.0,0.00018599,2]
[350952288,1738237552931,-500.0,0.00018647,2]
[350952289,1738237552953,-500.0,0.00018736,2]
[350952290,1738237552977,-500.0,0.00018784,2]
[350952291,1738237553001,-10612.59603762,0.00018856,2]
[350952292,1738237553025,-500.0,0.00018873,2]
[350952293,1738237553050,-637.53059199,0.000189,2]
[350952294,1738237553076,-500.0,0.00018921,2]
[350952295,1738237553102,-500.0,0.00018999,2]
[350952296,1738237553126,-500.0,0.00018999,2]
[350952297,1738237553149,-12077.93361422,0.00019,6]
[350952298,1738237553175,-500.0,0.0001901,2]
[350952299,1738237553198,-153.0,0.00019015,2]
[350952300,1738237553223,-153.0,0.00019015,2]
[350952301,1738237553246,-153.0,0.00019015,2]
[350952302,1738237553271,-153.0,0.00019015,2]
[350952303,1738237553293,-153.0,0.00019016,2]
[350952304,1738237553316,-153.0,0.00019016,2]
[350952305,1738237553340,-153.0,0.00019016,2]
[350952306,1738237553364,-153.0,0.00019016,2]
[350952307,1738237553386,-153.0,0.00019016,2]
[350952308,1738237553410,-153.0,0.00019016,2]
[350952309,1738237553434,-153.0,0.00019016,2]
[350952310,1738237553457,-153.0,0.00019018,2]
[350952311,1738237553481,-153.0,0.00019018,2]
[350952312,1738237553504,-153.0,0.00019018,2]
[350952313,1738237553528,-153.0,0.00019018,2]
[350952314,1738237553551,-153.0,0.00019019,2]
[350952315,1738237553575,-153.0,0.00019019,2]
[350952316,1738237553600,-153.0,0.00019019,2]
[350952317,1738237553622,-153.0,0.00019019,2]
[350952318,1738237553645,-153.0,0.00019019,2]
[350952319,1738237553668,-153.0,0.00019019,2]
[350952320,1738237553692,-153.0,0.00019019,2]
[350952321,1738237553870,-153.0,0.00019019,2]
[350952322,1738237553893,-153.0,0.00019021,2]
[350952323,1738237553915,-153.0,0.00019021,2]
[350952324,1738237553938,-153.0,0.00019021,2]
[350952325,1738237553959,-153.0,0.00019021,2]
[350952326,1738237553979,-153.0,0.00019022,2]
[350952327,1738237553999,-153.0,0.00019022,2]
[350952328,1738237554020,-153.0,0.00019022,2]
[350952329,1738237554042,-153.0,0.00019022,2]
[350952330,1738237554063,-153.0,0.00019022,2]
[350952331,1738237554087,-153.0,0.00019022,2]
[350952332,1738237554107,-153.0,0.00019022,2]
[350952333,1738237554127,-153.0,0.00019024,2]
[350952334,1738237554148,-153.0,0.00019024,2]
[350952335,1738237554169,-153.0,0.00019024,2]
[350952336,1738237554189,-153.0,0.00019024,2]
[350952337,1738237554209,-153.0,0.00019025,2]
[350952338,1738237554232,-153.0,0.00019025,2]
[350952339,1738237554253,-153.0,0.00019025,2]
[350952340,1738237554274,-153.0,0.00019025,2]
[350952341,1738237554294,-153.0,0.00019025,2]
[350952342,1738237554314,-153.0,0.00019025,2]
[350952343,1738237554335,-153.0,0.00019025,2]
[350952344,1738237554356,-153.0,0.00019025,2]
[350952345,1738237554380,-500.0,0.00019058,2]
[350952346,1738237554401,-163.86759169,0.00019114,2]
[350952347,1738237554426,-312.48621967,0.00019136,2]
[350952348,1738237554451,-500.0,0.00019136,2]
[350952349,1738237554472,-500.0,0.00019147,2]
[350952350,1738237554492,-500.0,0.00019178,7]
[350952351,1738237554512,-277.367885,0.00019178,2]
[350952352,1738237554535,-457.54495713,0.00019195,2]
[350952354,1738237637684,222.818393,0.00013973,2]
[350952355,1738237768107,-247.2,0.000167,2]
[350952405,1738237832884,-163.86759169,0.00017862,2]
[350952407,1738237832893,-255.63482811,0.00017961,2]
[350952409,1738237832905,-44.36517189,0.00017961,2]
[350952411,1738237832916,-500.0,0.00017962,2]
[350952413,1738237832926,-500.0,0.00017962,2]
[350952414,1738237832935,-563.04,0.00017962,2]
[350952415,1738237833084,-519.82,0.00017962,2]
[350952416,1738237833094,-573.9,0.00017962,2]
[350952417,1738237833104,-500.0,0.00017962,2]
[350952418,1738237833113,-571.69,0.00017962,2]
[350952419,1738237833123,-500.0,0.00017962,2]
[350952420,1738237833132,-500.0,0.00017962,2]
[350952421,1738237833141,-358.54865862,0.00017962,2]
[350952422,1738237833153,-141.45134138,0.00017962,2]
[350952423,1738237833163,-500.0,0.00017962,2]
[350952424,1738237833172,-322.39865862,0.00017962,2]
[350952425,1738237833189,-177.60134138,0.00017962,2]
[350952426,1738237833199,-231.44677056,0.00017962,2]
[350952427,1738237833211,-268.55322944,0.00017962,2]
[350952428,1738237833220,-165.30596096,0.00017962,2]
[350952429,1738237833231,-334.69403904,0.00017962,2]
[350952430,1738237833241,-315.63320055,0.00017962,2]
[350952431,1738237833250,-500.0,0.00017962,2]
[350952432,1738237833260,-500.0,0.00017962,2]
[350952433,1738237833269,-500.0,0.00017962,2]
[350952434,1738237833279,-500.0,0.00017962,2]
[350952435,1738237833288,-500.0,0.00017962,2]
[350952436,1738237833298,-500.0,0.00017962,2]
[350952437,1738237833307,-500.0,0.00017962,2]
[350952438,1738237833318,-500.0,0.00017962,2]
[350952439,1738237833327,-500.0,0.00017962,2]
[350952440,1738237833336,-248.04286737,0.00017962,2]
[350952441,1738237833345,-500.0,0.00017962,2]
[350952442,1738237833354,-500.0,0.00017962,2]
[350952443,1738237833363,-445.31860013,0.00017962,2]
[350952444,1738237833372,-500.0,0.00017962,2]
[350952445,1738237833381,-500.0,0.00017962,2]
[350952446,1738237833390,-500.0,0.00017962,2]
[350952447,1738237833399,-500.0,0.00017962,2]
[350952448,1738237833409,-500.0,0.00017962,2]
[350952449,1738237833418,-500.0,0.00017962,2]
[350952450,1738237833431,-500.0,0.00017962,2]
[350952451,1738237833440,-500.0,0.00017962,2]
[350952452,1738237833449,-500.0,0.00017962,2]
[350952453,1738237833459,-500.0,0.00017962,2]
[350952454,1738237833468,-500.0,0.00017962,2]
[350952455,1738237833477,-500.0,0.00017962,2]
[350952456,1738237833487,-2560.38,0.00017962,2]
[350952457,1738237833497,-500.0,0.00017962,2]
[350952458,1738237833506,-500.0,0.00017962,2]
[350952459,1738237833515,-1045.73,0.00017962,2]
[350952460,1738237833525,-500.0,0.00017962,2]
[350952461,1738237833534,-500.0,0.00017962,2]
[350952462,1738237833544,-500.0,0.00017962,2]
[350952463,1738237833553,-500.0,0.00017962,2]
[350952464,1738237833563,-500.0,0.00017962,2]
[350952465,1738237833573,-500.0,0.00017962,2]
[350952466,1738237833582,-500.0,0.00017962,2]
[350952467,1738237833593,-500.0,0.00017962,2]
[350952468,1738237833602,-500.0,0.00017962,2]
[350952469,1738237833611,-500.0,0.00017962,2]
[350952470,1738237833620,-500.0,0.00017962,2]
[350952471,1738237833630,-500.0,0.00017962,2]
[350952472,1738237833640,-500.0,0.00017962,2]
[350952473,1738237833649,-500.0,0.00017962,2]
[350952474,1738237833658,-500.0,0.00017962,2]
[350952475,1738237833668,-1125.89,0.00017962,2]
[350952476,1738237833677,-500.0,0.00017962,2]
[350952477,1738237833687,-500.0,0.00017962,2]
[350952478,1738237833696,-346.09769301,0.00017962,2]
[350952592,1738237839384,-164.32570475,0.00017962,2]
[350952594,1738237839393,-226.91299862,0.00017962,2]
[350952595,1738237839402,-500.0,0.00017962,2]
[350952596,1738237839412,-500.0,0.00017962,2]
[350952598,1738237839421,-500.0,0.00018098,2]
[350952599,1738237839431,-528.79696096,0.00018098,2]
[350952601,1738237839440,-500.0,0.00018098,2]
[350952603,1738237839449,-500.0,0.00018099,2]
[350952604,1738237839458,-500.0,0.00018099,2]
[350952605,1738237839467,-391.81560665,0.00018099,2]
[350952607,1738237839480,-108.18439335,0.00018099,2]
[350952609,1738237839489,-500.0,0.00018099,2]
[350952610,1738237839499,-197.53857531,0.00018099,2]
[350952611,1738237839508,-500.0,0.00018099,2]
[350952613,1738237839517,-500.0,0.00018099,2]
[350952615,1738237839526,-500.0,0.00018099,2]
[350952617,1738237839535,-500.0,0.00018099,2]
[350952619,1738237839544,-500.0,0.00018099,2]
[350952621,1738237839553,-500.0,0.00018099,2]
[350952622,1738237839562,-500.0,0.00018099,2]
[350952623,1738237839573,-500.0,0.00018099,2]
[350952624,1738237839582,-119.7151152,0.00018099,2]
[350952625,1738237839594,-380.2848848,0.00018099,2]
[350952626,1738237839603,-119.7151152,0.00018099,2]
[350952640,1738237840854,-380.2848848,0.00018099,2]
[350952641,1738237840863,-132.8201152,0.00018099,2]
[350952642,1738237840880,-367.1798848,0.00018099,2]
[350952643,1738237840890,-500.0,0.00018099,2]
[350952644,1738237840900,-488.39022604,0.00018099,2]
[350952645,1738237840910,-500.0,0.00018099,2]
[350952646,1738237840920,-500.0,0.00018099,2]
[350952647,1738237840930,-500.0,0.00018099,2]
[350952648,1738237840939,-500.0,0.00018099,2]
[350952649,1738237840949,-500.0,0.00018099,2]
[350952650,1738237840961,-500.0,0.00018099,2]
[350952651,1738237840972,-500.0,0.00018099,2]
[350952653,1738237840984,-418.70930979,0.00018099,2]
[350952655,1738237840994,-500.0,0.00018099,2]
[350952656,1738237841003,-500.0,0.00018099,2]
[350952657,1738237841013,-500.0,0.00018099,2]
[350952658,1738237841023,-1089.10963772,0.00018099,2]
[350952682,1738237843741,-1471.27036228,0.00018099,2]
[350952683,1738237843751,-500.0,0.00018099,2]
[350952684,1738237843760,-500.0,0.00018099,2]
[350952685,1738237843770,-1045.73,0.00018099,2]
[350952686,1738237843780,-500.0,0.00018099,2]
[350952687,1738237843789,-500.0,0.00018099,2]
[350952688,1738237843798,-500.0,0.00018099,2]
[350952689,1738237843808,-500.0,0.00018099,2]
[350952690,1738237843817,-500.0,0.00018099,2]
[350952691,1738237843826,-500.0,0.00018099,2]
[350952692,1738237843836,-500.0,0.00018099,2]
[350952693,1738237843845,-296.2,0.00018099,2]
[350952694,1738237843854,-500.0,0.00018099,2]
[350952695,1738237843863,-500.0,0.00018099,2]
[350952696,1738237843875,-500.0,0.00018099,2]
[350952697,1738237843884,-500.0,0.00018099,2]
[350952698,1738237843895,-500.0,0.00018099,2]
[350952699,1738237843904,-500.0,0.00018099,2]
[350952700,1738237843914,-1125.89,0.00018099,2]
[350952701,1738237843923,-500.0,0.00018099,2]
[350952702,1738237843932,-500.0,0.00018099,2]
[350952703,1738237843941,-500.0,0.00018099,2]
[350952704,1738237843952,-500.0,0.00018099,2]
[350952705,1738237843962,-395.0,0.00018124,2]
[350952706,1738237843971,-151.52933528,0.00018136,2]
[350952707,1738237843981,-500.0,0.00018154,2]
[350952708,1738237843990,-500.0,0.00018154,2]
[350952709,1738237843999,-500.0,0.00018154,2]
[350952710,1738237844009,-500.0,0.00018154,2]
[350952711,1738237844018,-500.0,0.00018154,2]
[350952712,1738237844031,-500.0,0.00018235,2]
[350952713,1738237844041,-500.0,0.00018235,2]
[350952714,1738237844051,-477.67584533,0.00018236,2]
[350952715,1738237844060,-159.90624263,0.00018236,2]
[350952716,1738237844069,-500.0,0.00018236,2]
[350952717,1738237844080,-500.0,0.00018236,2]
[350952718,1738237844089,-500.0,0.00018236,2]
[350952719,1738237844098,-500.0,0.00018236,2]
[350952720,1738237844107,-500.0,0.00018236,2]
[350952721,1738237844117,-500.0,0.00018236,2]
[350952722,1738237844127,-500.0,0.00018236,2]
[350952723,1738237844136,-500.0,0.00018236,2]
[350952724,1738237844146,-500.0,0.00018236,2]
[350952725,1738237844156,-500.0,0.00018236,2]
[350952726,1738237844166,-500.0,0.00018236,2]
[350952727,1738237844176,-500.0,0.00018236,2]
[350952728,1738237844185,-500.0,0.00018236,2]
[350952729,1738237844195,-500.0,0.00018236,2]
[350952730,1738237844204,-500.0,0.00018236,2]
[350952731,1738237844213,-500.0,0.00018236,2]
[350952732,1738237844222,-500.0,0.00018236,2]
[350952733,1738237844232,-500.0,0.00018236,2]
[350952734,1738237844242,-2560.38,0.00018236,2]
[350952735,1738237844251,-500.0,0.00018236,2]
[350952736,1738237844260,-500.0,0.00018236,2]
[350952737,1738237844270,-1045.73,0.00018236,2]
[350952738,1738237844279,-500.0,0.00018236,2]
[350952740,1738237844288,-500.0,0.00018236,2]
[350952742,1738237844297,-500.0,0.00018236,2]
[350952744,1738237844306,-500.0,0.00018236,2]
[350952746,1738237844315,-188.27380459,0.00018236,2]
[350952748,1738237844325,-500.0,0.00018236,2]
[350952749,1738237844334,-297.54109778,0.00018236,2]
[350952750,1738237844343,-500.0,0.00018236,2]
[350952751,1738237844352,-500.0,0.00018236,2]
[350952752,1738237844361,-500.0,0.00018236,2]
[350952753,1738237844370,-500.0,0.00018236,2]
[350952754,1738237844379,-500.0,0.00018236,2]
[350952755,1738237844388,-500.0,0.00018236,2]
[350952756,1738237844397,-1125.89,0.00018236,2]
[350952757,1738237844406,-500.0,0.00018236,2]
[350952758,1738237844415,-500.0,0.00018236,2]
[350952759,1738237844424,-500.0,0.00018236,2]
[350952760,1738237844434,-500.0,0.00018236,2]
[350952761,1738237844444,-298.8875314,0.00018291,2]
[350952762,1738237844465,-500.0,0.00018291,2]
[350952763,1738237844479,-500.0,0.00018291,2]
[350952764,1738237844488,-500.0,0.00018291,2]
[350952765,1738237844498,-1200.0,0.00018321,2]
[350952766,1738237844508,-500.0,0.00018338,2]
[350952767,1738237844518,-500.0,0.00018372,2]
[350952768,1738237844527,-500.0,0.00018372,2]
[350952769,1738237844537,-500.0,0.00018373,2]
[350952770,1738237844547,-500.0,0.00018373,2]
[350952771,1738237844557,-500.0,0.00018373,2]
[350952772,1738237844567,-500.0,0.00018373,2]
[350952773,1738237844577,-299.33,0.00018373,2]
[350952774,1738237844587,-500.0,0.00018373,2]
[350952775,1738237844596,-500.0,0.00018373,2]
[350952776,1738237844606,-500.0,0.00018373,2]
[350952777,1738237844615,-500.0,0.00018373,2]
[350952778,1738237844625,-500.0,0.00018373,2]
[350952779,1738237844634,-500.0,0.00018373,2]
[350952780,1738237844644,-2560.38,0.00018373,2]
[350952781,1738237844653,-500.0,0.00018373,2]
[350952782,1738237844662,-500.0,0.00018373,2]
[350952783,1738237844672,-1045.73,0.00018373,2]
[350952784,1738237844681,-500.0,0.00018373,2]
[350952785,1738237844690,-500.0,0.00018373,2]
[350952786,1738237844844,-500.0,0.00018373,2]
[350952787,1738237844854,-500.0,0.00018373,2]
[350952788,1738237844864,-500.0,0.00018373,2]
[350952789,1738237844880,-500.0,0.00018373,2]
[350952790,1738237844890,-500.0,0.00018373,2]
[350952791,1738237844899,-500.0,0.00018373,2]
[350952792,1738237844908,-500.0,0.00018373,2]
[350952793,1738237844918,-500.82506898,0.00018373,2]
[350952794,1738237844928,-500.0,0.00018373,2]
[350952795,1738237844938,-1125.89,0.00018373,2]
[350952796,1738237844948,-500.0,0.00018373,2]
[350952797,1738237844958,-500.0,0.00018373,2]
[350952798,1738237844967,-500.0,0.00018373,2]
[350952799,1738237844977,-500.0,0.00018373,2]
[350952800,1738237844987,-500.0,0.00018422,2]
[350952801,1738237844996,-500.0,0.00018428,2]
[350952802,1738237845005,-562.00849,0.00018428,2]
[350952803,1738237845015,-166.24253095,0.00018428,2]
[350952804,1738237845024,-500.0,0.00018509,2]
[350952805,1738237845035,-500.0,0.00018509,2]
[350952806,1738237845045,-500.0,0.0001851,2]
[350952807,1738237845054,-642.52,0.0001851,2]
[350952808,1738237845064,-218.71,0.0001851,2]
[350952809,1738237845074,-500.0,0.0001851,2]
[350952810,1738237845084,-500.0,0.0001851,2]
[350952811,1738237845093,-500.0,0.0001851,2]
[350952812,1738237845103,-500.0,0.0001851,2]
[350952813,1738237845112,-2560.38,0.0001851,2]
[350952814,1738237845122,-500.0,0.0001851,2]
[350952815,1738237845131,-1045.73,0.0001851,2]
[350952816,1738237845140,-500.0,0.0001851,2]
[350952817,1738237845149,-500.0,0.0001851,2]
[350952818,1738237845158,-500.0,0.0001851,2]
[350952819,1738237845167,-500.0,0.0001851,2]
[350952820,1738237845177,-500.0,0.0001851,2]
[350952821,1738237845185,-500.0,0.0001851,2]
[350952822,1738237845194,-500.0,0.0001851,2]
[350952823,1738237845203,-500.0,0.0001851,2]
[350952824,1738237845214,-1125.89,0.0001851,2]
[350952825,1738237845224,-500.0,0.0001851,2]
[350952826,1738237845235,-500.0,0.0001851,2]
[350952827,1738237845245,-500.0,0.0001851,2]
[350952828,1738237845255,-500.0,0.0001851,2]
[350952829,1738237845265,-500.0,0.00018565,2]
[350952830,1738237845276,-154.42,0.000186,2]
[350952831,1738237845286,-500.0,0.00018646,2]
[350952832,1738237845296,-500.0,0.00018646,2]
[350952833,1738237845307,-500.0,0.00018647,2]
[350952834,1738237845320,-500.0,0.00018647,2]
[350952835,1738237845331,-404.72,0.00018647,2]
[350952836,1738237845341,-2560.38,0.00018647,2]
[350952837,1738237845351,-1045.73,0.00018647,2]
[350952838,1738237845361,-500.0,0.00018647,2]
[350952839,1738237845371,-611.5,0.00018647,2]
[350952840,1738237845382,-245.75,0.00018647,2]
[350952841,1738237845391,-500.0,0.00018647,2]
[350952842,1738237845400,-500.0,0.00018647,2]
[350952843,1738237845410,-1125.89,0.00018647,2]
[350952844,1738237845419,-500.0,0.00018647,2]
[350952845,1738237845430,-500.0,0.00018647,2]
[350952846,1738237845439,-500.0,0.00018647,2]
[350952847,1738237845448,-500.0,0.00018647,2]
[350952848,1738237845458,-500.0,0.00018702,2]
[350952849,1738237845467,-500.0,0.00018783,2]
[350952850,1738237845477,-410.7,0.00018784,2]
[350952851,1738237845486,-500.0,0.00018784,2]
[350952852,1738237845496,-2560.38,0.00018784,2]
[350952853,1738237845505,-1045.73,0.00018784,2]
[350952854,1738237845514,-500.0,0.00018784,2]
[350952855,1738237845524,-500.0,0.00018784,2]
[350952856,1738237845534,-500.0,0.00018784,2]
[350952857,1738237845544,-1125.89,0.00018784,2]
[350952858,1738237845553,-500.0,0.00018784,2]
[350952859,1738237845563,-500.0,0.00018784,2]
[350952860,1738237845573,-500.0,0.00018784,2]
[350952861,1738237845583,-500.0,0.00018839,2]
[350952862,1738237845593,-425.02039466,0.000189,2]
[350952863,1738237845602,-443.4,0.0001892,2]
[350952864,1738237845611,-500.0,0.0001892,2]
[350952865,1738237845621,-274.40618692,0.0001892,2]
[350952866,1738237845631,-515.65945968,0.0001892,2]
[350952867,1738237845641,-500.0,0.0001892,2]
[350952868,1738237845651,-608.29884291,0.0001892,2]
[350952869,1738237845662,-500.0,0.0001892,2]
[350952870,1738237845672,-500.0,0.0001892,2]
[350952871,1738237845683,-500.0,0.0001892,2]
[350952872,1738237845692,-500.0,0.0001892,2]
[350952873,1738237845702,-500.0,0.0001892,2]
[350952874,1738237845712,-500.0,0.0001892,2]
[350952875,1738237845721,-500.0,0.00018921,2]
[350952876,1738237845731,-2560.38,0.00018921,2]
[350952877,1738237845742,-1045.73,0.00018921,2]
[350952878,1738237845752,-427.76,0.00018921,2]
[350952879,1738237845761,-500.0,0.00018921,2]
[350952880,1738237845772,-500.0,0.00018921,2]
[350952881,1738237845781,-1125.89,0.00018921,2]
[350952882,1738237845791,-500.0,0.00018921,2]
[350952883,1738237845801,-500.0,0.00018921,2]
[350952884,1738237845810,-163.86759169,0.00018923,2]
[350952885,1738237845819,-500.0,0.0001897,2]
[350952886,1738237845830,-500.0,0.00018976,2]
[350952887,1738237845839,-182.8611028,0.00019,3]
[350952888,1738237845850,-153.0,0.00019011,2]
[350952889,1738237845859,-153.0,0.00019011,2]
[350952890,1738237845868,-153.0,0.00019011,2]
[350952891,1738237845880,-153.0,0.00019011,2]
[350952892,1738237845889,-153.0,0.00019011,2]
[350952893,1738237845898,-153.0,0.00019011,2]
[350952894,1738237845907,-500.0,0.00019058,2]
[350952895,1738237845917,-2560.38,0.00019058,2]
[350952896,1738237845925,-1045.73,0.00019058,2]
[350952897,1738237845934,-500.0,0.00019058,2]
[350952898,1738237845943,-500.0,0.00019058,2]
[350952899,1738237845953,-1125.89,0.00019058,2]
[350952900,1738237845966,-500.0,0.00019058,2]
[350952901,1738237845975,-500.0,0.00019113,2]
[350952902,1738237845985,-500.0,0.00019195,2]
[350952903,1738237845994,-2560.38,0.00019195,2]
[350952904,1738237846003,-1045.73,0.00019195,2]
[350952905,1738237846012,-245.65,0.00019195,2]
[350952906,1738237846021,-500.0,0.00019195,2]
[350952907,1738237846032,-1125.89,0.00019195,2]
[350952908,1738237846043,-356.58,0.00019195,2]
[350952909,1738237846054,-500.0,0.0001925,2]
[350952910,1738237846064,-354.2307862,0.00019315,2]
[350952911,1738237846073,-354.2307862,0.00019315,2]
[350952912,1738237846083,-500.0,0.00019332,2]
[350952913,1738237846092,-2560.38,0.00019332,2]
[350952914,1738237846102,-1045.73,0.00019332,2]
[350952915,1738237846111,-500.0,0.00019332,2]
[350952916,1738237846121,-1125.89,0.00019332,2]
[350952917,1738237846131,-354.2307862,0.00019342,2]
[350952918,1738237846142,-500.0,0.00019387,2]
[350952919,1738237846151,-500.0,0.00019469,2]
[350952921,1738237846162,-2560.38,0.00019469,2]
[350952923,1738237846173,-1045.73,0.00019469,2]
[350952925,1738237846182,-500.0,0.00019469,2]
[350952927,1738237846191,-1125.89,0.00019469,2]
[350952928,1738237846200,-151.52933526,0.00019518,2]
[350952929,1738237846210,-500.0,0.00019524,2]
[350952930,1738237846219,-10612.59603762,0.00019592,2]
[350952931,1738237846228,-420.0,0.00019598,2]
[350952932,1738237846238,-500.0,0.00019606,2]
[350952933,1738237846247,-2560.38,0.00019606,2]